bitfinex-derivatives/quotes_SOLF0:USTF0_20250829
["timestamp","ask_amount","ask_price","bid_price","bid_amount"]
[1756479703918,7.07,208.08,207.92,5.22]
[1756479706128,7.07,208.08,207.93,17.87242416]
[1756479706424,7.07,208.15,207.94,5.22]
[1756479708225,7.07,208.12,207.94,5.22]
[1756479708530,7.07,208.05,207.87,5.22]
[1756479711328,83.55,208.12,207.9,3.95678557]
[1756479711528,83.55,208.12,207.92,17.87242416]
[1756479711729,7.07,208.12,207.93,5.22]
[1756479712036,7.07,208.12,207.93,9.17678557]
[1756479712531,7.07,208.12,207.94,3.95678557]
[1756479712931,7.07,208.12,207.93,5.22]
[1756479713434,7.07,208.12,207.93,3.95678557]
[1756479713731,7.07,208.12,207.95,3.95678557]
[1756479713922,7.07,208.12,207.96,5.22]
[1756479714328,7.07,208.12,207.97,17.87242416]
[1756479714630,7.07,208.12,207.98,5.22]
[1756479715136,7.07,208.2,208.03,5.22]
[1756479716529,7.07,208.2,208.03,9.17678557]
[1756479716734,7.07,208.2,208.04,5.22]
[1756479716928,323.0,208.24,208.04,5.22]
[1756479717134,7.07,208.25,208.08,5.22]
[1756479717334,7.07,208.25,208.09,19.0]
[1756479717731,7.07,208.25,208.12,23.09242416]
[1756479718137,22.54,208.34,208.12,23.09242416]
[1756479718337,7.07,208.33,208.12,23.09242416]
[1756479718734,7.07,208.32,208.12,23.09242416]
[1756479719235,133.46,208.33,208.12,5.22]
[1756479719436,7.07,208.32,208.12,5.22]
[1756479720334,7.07,208.32,208.13,17.87242416]
[1756479720534,7.07,208.32,208.14,5.22]
[1756479721335,17.87242416,208.31,208.11,3.95678557]
[1756479721530,7.07,208.3,208.08,5.22]
[1756479722039,140.73,208.3,208.08,5.22]
[1756479722433,7.07,208.27,208.08,5.22]
[1756479722637,7.07,208.25,208.08,5.22]
[1756479722837,4.3218,208.23,208.08,5.22]
[1756479723037,7.07,208.25,208.08,5.22]
[1756479723640,7.07,208.33,208.11,3.95678557]
[1756479723832,7.07,208.44,208.24,5.22]
[1756479724143,7.07,208.44,208.26,5.22]
[1756479724335,7.07,208.44,208.29,5.22]
[1756479725642,16.936,208.51,208.29,5.22]
[1756479725643,24.006,208.51,208.29,5.22]
[1756479725842,7.07,208.48,208.3,134.08]
[1756479726042,7.07,208.48,208.29,5.22]
[1756479726242,7.07,208.48,208.29,139.28]
[1756479726444,4.3171,208.46,208.29,139.28]
[1756479726645,7.66,208.41,208.23,5.21]
[1756479727347,4.3185,208.39,208.23,5.21]
[1756479727648,7.66,208.41,208.23,5.21]
[1756479728343,4.3183,208.4,208.23,5.21]
[1756479728944,7.66,208.41,208.23,5.21]
[1756479729646,11.9781,208.41,208.23,5.21]
[1756479730843,7.66,208.41,208.26,17.87242416]
[1756479731041,7.66,208.41,208.27,5.21]
[1756479731646,11.9781,208.41,208.27,5.21]
[1756479731845,7.66,208.41,208.27,5.21]
[1756479732447,7.66,208.46,208.27,5.21]
[1756479733549,7.66,208.46,208.31,17.87242416]
[1756479733752,7.66,208.46,208.32,5.21]
[1756479735053,7.66,208.46,208.32,138.89]
[1756479736647,7.66,208.46,208.32,5.21]
[1756479736846,7.66,208.46,208.27,322.64]
[1756479736847,7.66,208.44,208.27,322.64]
[1756479737151,19.56,208.44,208.18,17.87242416]
[1756479737348,7.66,208.39,208.19,5.2]
[1756479737749,7.66,208.33,208.19,5.2]
[1756479738154,7.66,208.33,208.15,108.22]
[1756479738860,7.66,208.33,208.16,5.2]
[1756479739152,7.66,208.44,208.2,5.2]
[1756479739357,7.66,208.44,208.25,5.2]
[1756479739755,7.66,208.44,208.25,19.64]
[1756479740557,7.66,208.41,208.25,19.64]
[1756479742156,7.66,208.41,208.25,5.2]
[1756479742959,7.66,208.41,208.26,18.4]
[1756479743258,7.66,208.41,208.27,28.02]
[1756479743857,7.66,208.5,208.3,5.2]
[1756479744556,7.66,208.5,208.31,133.24]
[1756479745856,7.66,208.5,208.3,5.2]
[1756479747055,7.66,208.5,208.32,5.2]
[1756479748160,7.66,208.5,208.37,5.2]
[1756479749261,53.73,208.58,208.34,28.68]
[1756479749463,17.87242416,208.54,208.32,34.12]
[1756479749969,7.66,208.47,208.32,5.2]
[1756479750263,7.66,208.58,208.32,5.2]
[1756479750564,7.66,208.53,208.37,5.2]
[1756479752069,4.3159,208.52,208.37,5.2]
[1756479752272,7.66,208.53,208.37,5.2]
[1756479752763,7.66,208.55,208.32,5.2]
[1756479753267,7.66,208.45,208.32,5.2]
[1756479755771,32.30242416,208.51,208.26,17.87242416]
[1756479756072,7.66,208.5,208.26,155.64242416]
[1756479756467,7.4,208.5,208.26,155.64242416]
[1756479756770,7.4,208.43,208.26,155.64242416]
[1756479757072,7.4,208.5,208.27,5.21]
[1756479757472,7.4,208.5,208.32,5.21]
[1756479757670,4.3148,208.57,208.37,5.21]
[1756479757872,4.3148,208.57,208.38,109.52]
[1756479758070,7.4,208.58,208.38,109.52]
[1756479758273,7.4,208.58,208.39,5.21]
[1756479759275,7.4,208.5,208.33,5.21]
[1756479760366,4.3176,208.44,208.33,5.21]
[1756479760572,7.4,208.46,208.33,5.21]
[1756479761072,11.717,208.46,208.33,5.21]
[1756479761269,7.4,208.46,208.33,5.21]
[1756479761471,8.48,208.58,208.33,9.16323574]
[1756479761672,11.7151,208.55,208.34,9.16323574]
[1756479761871,11.7151,208.55,208.38,5.21]
[1756479762073,7.4,208.55,208.38,97.21]
[1756479762472,7.4,208.55,208.38,5.21]
[1756479763169,11.7153,208.55,208.38,5.21]
[1756479764170,7.4,208.55,208.38,5.21]
[1756479764370,7.4,208.55,208.43,5.21]
[1756479764574,7.4,208.63,208.43,5.21]
[1756479764776,4.3143,208.6,208.43,5.21]
[1756479765368,7.4,208.63,208.43,5.21]
[1756479765570,7.4,208.63,208.48,5.21]
[1756479765873,4.3143,208.6,208.48,5.21]
[1756479766278,14.43,208.65,208.42,23.08242416]
[1756479766472,7.4,208.66,208.42,23.08242416]
[1756479766473,7.4,208.6,208.43,5.21]
[1756479766874,7.4,208.67,208.48,5.21]
[1756479767070,4.313,208.66,208.48,5.21]
[1756479767274,7.4,208.67,208.48,5.21]
[1756479767980,21.83,208.67,208.48,5.21]
[1756479768180,7.4,208.64,208.43,23.08242416]
[1756479768377,21.83,208.63,208.43,5.21]
[1756479768577,32.30242416,208.59,208.39,322.42]
[1756479768777,21.83,208.57,208.37,5.21]
[1756479768978,7.4,208.49,208.37,5.21]
[1756479769575,7.4,208.49,208.35,132.32]
[1756479770080,7.4,208.46,208.31,5.21]
[1756479770975,7.4,208.46,208.28,4.01295688]
[1756479771279,7.4,208.43,208.24,5.21]
[1756479771480,7.4,208.41,208.21,4.01295688]
[1756479771780,11.7188,208.38,208.18,9.22295688]
[1756479772180,7.4,208.38,208.18,4.01295688]
[1756479772375,7.4,208.38,208.22,9.22295688]
[1756479772978,7.4,208.38,208.23,4.01295688]
[1756479773380,7.4,208.44,208.25,9.22295688]
[1756479773583,7.4,208.44,208.26,4.01295688]
[1756479774576,7.4,208.44,208.27,9.22295688]
[1756479774978,11.7174,208.44,208.27,9.22295688]
[1756479775372,7.4,208.44,208.27,9.22295688]
[1756479775681,7.4,208.44,208.28,4.01295688]
[1756479776078,4.318,208.41,208.27,5.21]
[1756479776473,23.64,208.44,208.27,5.21]
[1756479776672,11.7176,208.44,208.27,5.21]
[1756479777073,7.4,208.44,208.27,5.21]
[1756479778178,7.4,208.4,208.24,4.01295688]
[1756479778377,7.4,208.4,208.23,4.01295688]
[1756479778578,25.27242416,208.4,208.22,5.21]
[1756479779283,4.3193,208.36,208.22,5.21]
[1756479779684,7.4,208.37,208.18,4.01295688]
[1756479779884,4.3194,208.35,208.17,4.01295688]
[1756479780181,7.4,208.34,208.17,4.01295688]
[1756479780383,14.43,208.34,208.16,4.01295688]
[1756479780577,7.4,208.29,208.09,4.01295688]
[1756479780780,7.4,208.27,208.08,4.01295688]
[1756479780975,7.4,208.27,208.09,4.01295688]
[1756479781175,7.4,208.27,208.12,4.01295688]
[1756479781377,22.19392416,208.25,208.08,4.01295688]
[1756479781583,7.4,208.24,208.05,5.21]
[1756479781783,7.4,208.24,208.05,9.22295688]
[1756479781986,21.83,208.24,208.05,5.21]
[1756479782284,7.4,208.19,208.05,5.21]
[1756479782487,4.3228,208.18,208.02,4.01295688]
[1756479782788,7.4,208.17,208.01,182.24909695]
[1756479782984,7.4,208.17,208.02,5.21]
[1756479783180,7.4,208.17,208.03,4.01295688]
[1756479783378,7.4,208.13,208.01,182.24909695]
[1756479784286,32.30242416,208.19,208.01,182.24909695]
[1756479784287,7.4,208.19,208.02,5.21]
[1756479785887,7.4,208.25,208.02,4.01295688]
[1756479786088,7.4,208.25,208.03,9.22295688]
[1756479786288,7.4,208.25,208.04,5.21]
[1756479786695,7.4,208.25,208.07,5.22]
[1756479787085,7.4,208.25,208.08,105.72]
[1756479787283,7.4,208.25,208.09,5.22]
[1756479787683,17.87242416,208.34,208.09,5.22]
[1756479787894,17.87242416,208.34,208.12,5.22]
[1756479787895,7.04,208.31,208.12,5.22]
[1756479788595,17.87242416,208.29,208.08,132.86]
[1756479788889,7.04,208.28,208.06,138.04]
[1756479789098,7.04,208.23,208.06,5.22]
[1756479789284,7.04,208.21,208.05,322.68]
[1756479789491,7.04,208.21,208.01,5.22]
[1756479789892,7.04,208.21,208.04,5.22]
[1756479793998,7.04,208.18,208.04,5.22]
[1756479794498,7.04,208.16,207.97,8.72]
[1756479794695,7.04,208.16,207.98,5.22]
[1756479795494,71.56,208.15,207.98,5.22]
[1756479795694,7.04,208.14,207.98,5.22]
[1756479795896,4.3239,208.13,207.98,5.22]
[1756479796597,7.04,208.14,207.98,5.22]
[1756479798297,7.04,208.21,208.0,17.87242416]
[1756479798503,7.04,208.21,208.01,5.23]
[1756479800799,322.74,208.24,208.06,5.23]
[1756479801003,322.74,208.24,208.08,5.23]
[1756479801605,7.04,208.27,208.1,5.23]
[1756479802903,89.62,208.27,208.1,5.23]
[1756479803307,7.04,208.27,208.1,5.23]
[1756479803604,7.04,208.27,208.11,28.47242416]
[1756479804505,7.04,208.29,208.1,5.23]
[1756479805207,7.04,208.26,208.1,5.23]
[1756479805609,146.81,208.3,208.07,29.66]
[1756479805610,4.3217,208.24,208.07,29.66]
[1756479805912,32.30242416,208.28,208.07,29.66]
[1756479806202,17.87242416,208.28,208.07,29.66]
[1756479806407,7.04,208.24,208.08,5.23]
[1756479806905,11.3616,208.24,208.08,5.23]
[1756479807095,7.04,208.24,208.08,5.23]
[1756479807499,7.04,208.24,208.07,29.66]
[1756479807500,7.04,208.35,208.18,5.23]
[1756479808302,7.04,208.31,208.18,5.23]
[1756479808805,7.04,208.31,208.15,17.87242416]
[1756479809005,4.3203,208.3,208.15,17.87242416]
[1756479809206,7.04,208.29,208.15,17.87242416]
[1756479809705,7.04,208.29,208.12,124.35]
[1756479809911,7.04,208.29,208.13,5.23]
[1756479812203,7.04,208.29,208.1,132.46]
[1756479812204,128.52102232,208.32,208.18,5.23]
[1756479812405,7.04,208.35,208.18,5.23]
[1756479814411,7.04,208.35,208.18,37.45]
[1756479814616,7.04,208.35,208.19,5.23]
[1756479817616,7.04,208.35,208.21,17.87242416]
[1756479818110,7.04,208.35,208.19,23.23]
[1756479819316,7.04,208.35,208.22,5.21]
[1756479820113,17.87242416,208.45,208.22,5.21]
[1756479820311,139.62,208.44,208.22,5.21]
[1756479820710,7.5,208.41,208.22,5.21]
[1756479822712,7.5,208.41,208.22,9.2106946]
[1756479822907,7.5,208.41,208.23,5.21]
[1756479823907,7.5,208.39,208.18,5.21]
[1756479824514,4.3196,208.34,208.18,5.21]
[1756479824714,7.5,208.33,208.18,5.21]
[1756479825114,7.5,208.29,208.13,5.21]
[1756479825513,11.8207,208.29,208.13,5.21]
[1756479825813,7.5,208.29,208.13,5.21]
[1756479826014,354.94242416,208.35,208.09,340.69242416]
[1756479826216,17.87242416,208.3,208.09,322.82]
[1756479826417,7.5,208.29,208.09,322.82]
[1756479826612,7.5,208.28,208.09,322.82]
[1756479826818,7.5,208.26,208.09,322.82]
[1756479828321,7.5,208.26,208.1,5.21]
[1756479829819,4.3217,208.24,208.1,5.21]
[1756479830021,7.5,208.26,208.1,5.21]
[1756479831716,4.3214,208.25,208.1,5.21]
[1756479832114,7.5,208.22,208.1,5.21]
[1756479832715,7.5,208.22,208.05,4.0006946]
[1756479832716,7.5,208.24,208.05,5.21]
[1756479833121,7.5,208.24,208.1,5.21]
[1756479835219,7.5,208.24,208.06,4.0006946]
[1756479835421,7.5,208.24,208.04,9.2106946]
[1756479835620,7.5,208.24,208.05,4.0006946]
[1756479835823,4.3218,208.23,208.05,4.0006946]
[1756479836323,7.5,208.24,208.06,27.08311876]
[1756479836524,7.5,208.24,208.07,4.0006946]
[1756479836922,11.8217,208.24,208.06,27.08311876]
[1756479837325,7.5,208.24,208.06,23.08242416]
[1756479837526,4.3221,208.22,208.06,23.08242416]
[1756479837716,7.5,208.21,208.06,23.08242416]
[1756479837920,7.5,208.21,208.07,5.21]
[1756479838921,7.5,208.21,208.07,9.2106946]
[1756479839124,7.5,208.21,208.07,5.21]
[1756479839626,7.5,208.21,208.02,4.0006946]
[1756479840124,21.93,208.23,208.02,4.0006946]
[1756479840520,7.5,208.23,208.03,5.21]
[1756479840722,11.8219,208.23,208.05,4.0006946]
[1756479840914,11.8219,208.23,208.04,4.0006946]
[1756479841121,11.8219,208.23,208.05,9.2106946]
[1756479841425,4.3222,208.21,208.05,9.2106946]
[1756479841626,7.5,208.2,208.05,5.21]
[1756479842029,7.5,208.16,208.05,5.21]
[1756479842923,126.56481199,208.33,208.07,4.0006946]
[1756479842924,7.5,208.22,208.07,4.0006946]
[1756479843230,7.5,208.22,208.08,9.2106946]
[1756479843427,7.5,208.22,208.1,4.0006946]
[1756479843824,7.5,208.22,208.09,4.0006946]
[1756479844223,7.5,208.22,208.08,9.2106946]
[1756479844425,7.5,208.22,208.09,4.0006946]
[1756479844926,7.5,208.22,208.08,5.21]
[1756479845324,7.5,208.18,208.05,4.0006946]
[1756479845527,7.5,208.18,208.02,23.08242416]
[1756479845528,7.5,208.18,208.04,4.0006946]
[1756479845931,7.5,208.18,208.02,9.2106946]
[1756479845932,4.323,208.17,208.02,9.2106946]
[1756479846134,4.323,208.17,208.03,4.0006946]
[1756479846335,7.5,208.18,208.03,4.0006946]
[1756479846734,7.5,208.18,208.02,5.21]
[1756479846935,7.5,208.18,208.03,4.01783689]
[1756479847331,7.5,208.18,208.02,5.21]
[1756479847332,17.87242416,208.16,208.02,4.01783689]
[1756479847537,17.87242416,208.16,207.97,331.93783689]
[1756479847837,7.77,208.1,207.97,5.22]
[1756479848035,7.77,208.1,207.98,4.01783689]
[1756479848234,7.77,208.1,207.97,9.23783689]
[1756479848836,7.77,208.18,207.99,9.23783689]
[1756479849132,7.77,208.12,207.99,5.22]
[1756479850332,22.2,208.15,207.95,4.01783689]
[1756479850530,22.2,208.15,207.94,5.22]
[1756479850731,7.77,208.12,207.94,5.22]
[1756479850933,7.77,208.12,207.96,4.01783689]
[1756479851134,7.77,208.12,207.95,5.22]
[1756479851343,7.77,208.12,207.96,5.22]
[1756479851641,7.77,208.12,207.98,5.22]
[1756479851841,7.77,208.12,207.99,5.22]
[1756479853540,7.77,208.12,207.95,4.01783689]
[1756479853742,7.77,208.12,207.93,9.23783689]
[1756479853939,4.325,208.08,207.93,9.23783689]
[1756479854244,7.77,208.07,207.93,5.22]
[1756479855545,7.77,208.07,207.88,11.3282118]
[1756479855546,7.77,208.07,207.88,5.22]
[1756479855842,7.77,208.03,207.88,5.22]
[1756479856043,4.3264,208.01,207.88,5.22]
[1756479856243,7.77,208.03,207.88,5.22]
[1756479857141,12.0959,208.03,207.88,5.22]
[1756479857548,7.77,208.03,207.88,5.22]
[1756479858746,7.77,208.08,207.93,5.23]
[1756479860144,4.3253,208.06,207.93,5.23]
[1756479860346,7.77,208.05,207.93,5.23]
[1756479861741,17.88758275,208.08,207.88,5.23]
[1756479862045,7.77,208.07,207.88,5.23]
[1756479862445,7.77,208.0,207.88,5.23]
[1756479863949,14.43,208.1,207.88,5.23]
[1756479863950,7.77,208.1,207.89,5.23]
[1756479864152,7.77,208.1,207.94,5.23]
[1756479864350,7.77,208.1,207.95,132.12]
[1756479864652,7.77,208.17,207.98,17.88758275]
[1756479864848,7.77,208.17,207.99,5.23]
[1756479865354,7.77,208.17,208.04,5.23]
[1756479865552,7.77,208.17,208.04,51.73]
[1756479867550,7.77,208.17,208.04,5.23]
[1756479867754,4.3235,208.15,207.98,5.23]
[1756479867956,7.77,208.17,207.98,5.23]
[1756479868344,7.77,208.17,207.98,9.24783689]
[1756479868857,7.77,208.17,207.98,5.23]
[1756479868858,4.3234,208.15,207.98,5.23]
[1756479869053,7.77,208.17,207.99,5.23]
[1756479869458,7.77,208.17,208.0,23.56]
[1756479869753,7.77,208.17,207.99,5.23]
[1756479870347,7.77,208.12,207.99,5.23]
[1756479873756,7.77,208.12,207.94,5.23]
[1756479873950,164.35758275,208.16,207.87,7.93152187]
[1756479873951,22.2,208.1,207.88,4.01362164]
[1756479874161,17.88758275,208.06,207.87,5.23]
[1756479874360,84.01,208.05,207.87,5.23]
[1756479874562,7.77,208.02,207.87,5.23]
[1756479876764,7.59,208.0,207.87,5.23]
[1756479877863,11.9165,208.0,207.87,5.23]
[1756479878062,7.59,208.0,207.87,5.23]
[1756479878455,4.3271,207.98,207.87,5.23]
[1756479878764,36.22,208.03,207.84,191.78288913]
[1756479878964,7.59,208.02,207.84,184.48288913]
[1756479879161,36.22,208.03,207.84,184.48288913]
[1756479879366,7.59,207.95,207.84,184.48288913]
[1756479880665,100.62,207.98,207.85,5.25]
[1756479880857,7.59,208.04,207.92,5.25]
[1756479884169,323.04,208.05,207.92,5.25]
[1756479884564,323.04,208.05,207.92,9.26362164]
[1756479884860,132.02,208.12,207.96,5.25]
[1756479885769,7.59,208.11,207.96,5.25]
[1756479888469,139.59,208.11,207.96,5.25]
[1756479888778,7.59,208.11,207.96,5.25]
[1756479889274,7.59,208.11,207.96,9.26362164]
[1756479889869,7.59,208.11,207.99,5.25]
[1756479893176,7.59,208.11,207.99,9.26362164]
[1756479893769,7.59,208.11,207.99,5.25]
[1756479894672,7.59,208.11,207.96,4.01362164]
[1756479895278,7.59,208.11,207.97,4.01362164]
[1756479895675,7.59,208.11,207.98,5.25]
[1756479898672,7.59,208.11,207.96,4.01362164]
[1756479898878,7.59,208.11,207.95,4.01362164]
[1756479899379,7.59,208.08,207.94,4.01362164]
[1756479900075,7.59,208.08,207.95,4.01362164]
[1756479900380,7.59,208.14,207.99,5.25]
[1756479901081,7.59,208.14,208.0,4.02205542]
[1756479901278,7.59,208.14,207.98,5.28768124]
[1756479901279,7.59,208.14,208.02,5.25]
[1756479903977,7.59,208.24,208.08,5.25]
[1756479904179,139.41,208.24,208.08,5.25]
[1756479904374,11.31527617,208.22,208.04,4.02205542]
[1756479904683,131.82,208.24,208.01,5.25]
[1756479904684,7.59,208.17,208.01,5.25]
[1756479905285,54.45,208.17,208.01,9.27205542]
[1756479905784,70.6131,208.17,208.01,9.27205542]
[1756479906675,4.3234,208.16,208.01,5.25]
[1756479906877,7.33,208.15,208.01,5.25]
[1756479907384,7.33,208.15,207.9,11.31527617]
[1756479907385,7.33,208.15,207.99,4.02205542]
[1756479907585,7.33,208.15,207.98,4.02205542]
[1756479907883,7.33,208.11,207.96,9.23205542]
[1756479908685,7.33,208.11,207.96,5.21]
[1756479909281,7.33,208.08,207.96,5.21]
[1756479909486,18.64527617,208.08,207.96,5.21]
[1756479910180,7.33,208.08,207.96,5.21]
[1756479910783,18.64527617,208.08,207.92,29.04205542]
[1756479910977,7.33,208.07,207.93,5.21]
[1756479911177,7.33,208.15,207.96,4.02205542]
[1756479911381,136.0836,208.14,207.97,9.23205542]
[1756479911584,7.33,208.13,207.98,11.31527617]
[1756479911782,7.33,208.13,207.99,5.21]
[1756479911984,7.33,208.13,208.0,5.21]
[1756479912184,7.33,208.13,208.0,9.23205542]
[1756479912982,7.33,208.13,208.02,11.31527617]
[1756479913586,7.33,208.19,208.03,5.21]
[1756479914080,131.72,208.18,208.03,5.21]
[1756479914280,7.33,208.17,208.03,5.21]
[1756479914688,11.653,208.17,208.03,5.21]
[1756479916091,334.29527617,208.26,208.05,5.21]
[1756479916289,7.33,208.25,208.08,15.33733159]
[1756479916477,7.33,208.25,208.11,5.21]
[1756479916680,7.33,208.25,208.12,11.31527617]
[1756479916882,7.33,208.27,208.11,5.21]
[1756479917079,7.33,208.27,208.11,9.23205542]
[1756479917389,7.33,208.27,208.11,5.21]
[1756479917591,7.33,208.27,208.12,11.31527617]
[1756479918786,7.33,208.27,208.13,5.21]
[1756479918990,7.33,208.27,208.06,27.52]
[1756479918991,7.33,208.27,208.17,5.21]
[1756479920792,7.33,208.27,208.14,11.31527617]
[1756479921292,7.33,208.27,208.13,11.31527617]
[1756479922596,7.33,208.27,208.14,5.21]
[1756479923898,7.33,208.27,208.14,16.52527617]
[1756479924493,7.33,208.27,208.15,5.21]
[1756479924700,7.33,208.27,208.18,11.31527617]
[1756479924897,7.33,208.32,208.19,5.21]
[1756479925603,7.33,208.32,208.23,5.21]
[1756479925791,7.33,208.41,208.23,5.21]
[1756479925998,7.33,208.41,208.26,11.31527617]
[1756479926197,7.33,208.41,208.23,5.21]
[1756479926394,7.33,208.36,208.23,16.52527617]
[1756479926599,7.33,208.4,208.23,16.52527617]
[1756479926898,11.31527617,208.37,208.17,5.21]
[1756479927104,7.33,208.32,208.17,5.21]
[1756479928800,7.33,208.29,208.12,16.52527617]
[1756479929395,7.33,208.29,208.12,11.31527617]
[1756479929701,7.33,208.29,208.13,5.21]
[1756479929894,11.6506,208.29,208.13,5.21]
[1756479930095,7.33,208.29,208.13,5.21]
[1756479930504,7.33,208.29,208.17,5.21]
[1756479931304,7.33,208.29,208.2,11.31527617]
[1756479932605,7.33,208.29,208.17,16.52527617]
[1756479935206,7.33,208.29,208.12,24.18]
[1756479935207,4.3195,208.34,208.21,11.31527617]
[1756479935402,7.33,208.36,208.21,11.31527617]
[1756479935600,7.33,208.36,208.25,11.31527617]
[1756479936202,7.33,208.36,208.25,16.52527617]
[1756479936403,7.33,208.36,208.16,4.02205542]
[1756479936404,7.33,208.41,208.29,11.31527617]
[1756479937903,7.33,208.41,208.3,5.2]
[1756479938207,7.6,208.45,208.3,5.2]
[1756479938400,7.6,208.45,208.2,11.31527617]
[1756479938401,11.31527617,208.44,208.25,16.51527617]
[1756479938605,7.6,208.39,208.2,5.2]
[1756479939015,138.96,208.39,208.23,11.31527617]
[1756479939306,7.6,208.39,208.24,5.2]
[1756479939609,11.9185,208.39,208.24,5.2]
[1756479940007,7.6,208.39,208.24,5.2]
[1756479940409,7.6,208.39,208.18,343.54]
[1756479940410,7.6,208.39,208.27,16.51527617]
[1756479940712,138.92,208.43,208.28,5.2]
[1756479941111,143.2376,208.43,208.28,5.2]
[1756479942013,11.9176,208.43,208.28,5.2]
[1756479942213,7.6,208.43,208.28,5.2]
[1756479943014,7.6,208.48,208.35,16.51527617]
[1756479943409,7.6,208.48,208.35,5.2]
[1756479943604,100.62,208.51,208.29,16.51527617]
[1756479943605,112.77034924,208.51,208.29,16.51527617]
[1756479944209,4.3174,208.44,208.29,16.51527617]
[1756479944409,7.6,208.43,208.29,16.51527617]
[1756479945013,11.9177,208.43,208.29,16.51527617]
[1756479945220,7.6,208.42,208.25,11.31527617]
[1756479945409,7.6,208.41,208.25,11.31527617]
[1756479945608,4.3184,208.39,208.25,11.31527617]
[1756479946114,11.918,208.41,208.26,5.2]
[1756479946314,7.6,208.5,208.33,11.31527617]
[1756479946504,7.6,208.5,208.34,5.2]
[1756479946709,4.3167,208.48,208.34,5.2]
[1756479946911,7.6,208.47,208.34,5.2]
[1756479947613,7.6,208.48,208.29,16.51527617]
[1756479947815,7.6,208.47,208.29,16.51527617]
[1756479948211,7.6,208.47,208.34,5.2]
[1756479949013,7.6,208.47,208.37,11.31527617]
[1756479949214,7.6,208.54,208.38,5.2]
[1756479949608,7.6,208.54,208.42,5.2]
[1756479951017,7.6,208.54,208.39,11.31527617]
[1756479951216,11.31527617,208.56,208.37,5.2]
[1756479951417,7.6,208.55,208.37,5.2]
[1756479951717,7.6,208.51,208.37,5.2]
[1756479952217,4.3163,208.49,208.37,5.2]
[1756479952717,7.6,208.51,208.35,11.31527617]
[1756479952916,114.41527617,208.52,208.35,11.31527617]
[1756479953119,7.6,208.51,208.35,11.31527617]
[1756479953418,138.7,208.51,208.35,11.31527617]
[1756479953721,11.9171,208.46,208.33,11.31527617]
[1756479954418,7.6,208.46,208.34,5.2]
[1756479954722,12.04,208.52,208.34,5.2]
[1756479955021,7.6,208.51,208.34,5.2]
[1756479955218,4.3169,208.46,208.34,5.2]